fUST/lending_fUST_20260224
["ID","MTS","AMOUNT","RATE_DAILY","PERIOD"]
[406393590,1771862409711,156.3,9.5e-05,2]
[406393591,1771862424086,-156.3,9.8e-05,2]
[406393592,1771862424113,-557.0,9.8e-05,2]
[406393593,1771862424238,-156.3,0.000101,2]
[406393594,1771862424267,-156.3,0.000104,2]
[406393598,1771862460077,-3774.97672345,0.00013172,2]
[406393599,1771862460099,-875.16070731,0.00013172,2]
[406393602,1771862489452,-150.0,0.00013221,2]
[406393603,1771862489489,-300.0,0.0001327,2]
[406393604,1771862489517,-488.36094618,0.00013271,2]
[406393605,1771862489547,-241.82737222,0.00013271,2]
[406393606,1771862489580,-300.0,0.00013271,2]
[406393607,1771862489607,-300.0,0.00013271,2]
[406393608,1771862489633,-300.0,0.00013271,2]
[406393609,1771862489742,-640.50008665,0.00013271,2]
[406393611,1771862518761,-500.0,0.00013271,2]
[406393612,1771862518788,-520.68840505,0.00013271,2]
[406393613,1771862518825,-38.8115083,0.00013271,2]
[406393621,1771862548040,-300.0,0.00013271,2]
[406393622,1771862548068,-120.68840505,0.00013272,2]
[406393623,1771862548103,-179.31159495,0.00013272,2]
[406393628,1771862577579,-420.68840505,0.00013272,2]
[406393735,1771862743120,-1104.81636217,0.00012119,2]
[406393740,1771862813084,-173.88720984,0.00011997,2]
[406393742,1771862825107,-4442.23670669,0.00011877,2]
[406393743,1771862825132,-4027.88052072,0.00011997,2]
[406393744,1771862825155,-1154.77963753,0.00012119,2]
[406393745,1771862825178,-150.0,0.00012364,2]
[406393746,1771862825201,-300.0,0.00012609,2]
[406393747,1771862825223,-1200.0,0.0001261,2]
[406393748,1771862825244,-8785.3605571,0.00012611,2]
[406393749,1771862825264,-200.78169247,0.00012665,2]
[406393750,1771862825285,-300.0,0.00013006,2]
[406393751,1771862825306,-300.0,0.00013006,2]
[406393752,1771862825330,-246.0,0.00013006,2]
[406393753,1771862825351,-265.71673153,0.00013171,2]
[406393754,1771862828087,-426.95568248,0.00013171,2]
[406393760,1771862851092,-3376.19783794,0.00013171,2]
[406393761,1771862851115,-303.57935313,0.0001327,2]
[406393762,1771862851137,-300.0,0.0001327,2]
[406393763,1771862851163,-500.0,0.00013271,2]
[406393764,1771862851185,-212.26913045,0.00013271,2]
[406393765,1771862851208,-7878.93885689,0.00013271,2]
[406393766,1771862880426,345.24,8.238e-05,2]
[406393767,1771862880711,345.24,8.238e-05,2]
[406393768,1771862881059,345.22,8.238e-05,2]
[406393778,1771862950145,-513.64867186,0.00013139,2]
[406393780,1771862950167,-500.0,0.00013272,2]
[406393781,1771862950189,-292.91781709,0.00013272,2]
[406393782,1771862950210,-500.0,0.00013272,2]
[406393783,1771862950232,-190.0,0.00013272,2]
[406393784,1771862950253,-300.0,0.00013272,2]
[406393785,1771862950273,-500.0,0.00013273,2]
[406393786,1771862950293,-561.36786673,0.00013273,2]
[406393787,1771862950312,-500.0,0.00013273,2]
[406393788,1771862950332,-500.0,0.00013273,2]
[406393789,1771862950352,-500.0,0.00013273,2]
[406393790,1771862950380,-247.48551082,0.00013273,2]
[406393791,1771862950400,-506.38670905,0.00013273,2]
[406393792,1771862950420,-500.0,0.00013273,2]
[406393793,1771862950442,-401.07702547,0.00013273,2]
[406393794,1771862950462,-500.0,0.00013273,2]
[406393795,1771862950482,-193.36565133,0.00013273,2]
[406393796,1771862950502,-500.0,0.00013273,2]
[406393797,1771862950522,-987.1349873,0.00013273,2]
[406393798,1771862958110,-25177.62236137,0.00013273,2]
[406393799,1771862958132,-500.0,0.00013273,2]
[406393800,1771862958155,-7.30766606,0.00013273,2]
[406393801,1771862961139,-579.82207652,0.00013273,2]
[406393802,1771862961159,-65.43553897,0.00013273,2]
[406393803,1771862962104,-434.56446103,0.00013273,2]
[406393804,1771862962127,-334.57738624,0.00013536,2]
[406393810,1771863007447,153.05,9.5e-05,2]
[406393811,1771863008987,153.05,9.5e-05,2]
[406393812,1771863009821,153.05,9.5e-05,2]
[406393861,1771863031840,-153.05,9.6e-05,2]
[406393862,1771863031849,-153.05,9.6e-05,2]
[406393863,1771863031859,-153.05,9.6e-05,2]
[406393864,1771863031869,-153.05,9.6e-05,2]
[406393865,1771863031878,-71.90001,9.6e-05,2]
[406393866,1771863031890,-81.14999,9.6e-05,2]
[406393867,1771863031899,-153.05,9.7e-05,2]
[406393868,1771863031908,-153.05,9.7e-05,2]
[406393869,1771863031918,-153.05,9.7e-05,2]
[406393870,1771863031928,-153.05,9.7e-05,2]
[406393871,1771863031937,-153.05,9.7e-05,2]
[406393872,1771863031946,-153.05,9.8e-05,2]
[406393873,1771863031956,-153.05,9.8e-05,2]
[406393874,1771863031965,-153.05,9.8e-05,2]
[406393875,1771863031975,-153.05,9.8e-05,2]
[406393876,1771863031985,-153.05,9.9e-05,2]
[406393877,1771863031994,-153.05,9.9e-05,2]
[406393878,1771863032003,-124.57500999,9.9e-05,2]
[406393879,1771863032482,-28.47499001,9.9e-05,2]
[406393880,1771863032491,-153.05,9.9e-05,2]
[406393881,1771863032500,-153.05,9.9e-05,2]
[406393882,1771863032510,-153.05,0.0001,2]
[406393883,1771863032519,-153.05,0.0001,2]
[406393884,1771863032530,-153.05,0.0001,2]
[406393885,1771863032539,-153.05,0.0001,2]
[406393886,1771863032549,-153.05,0.0001,2]
[406393887,1771863032560,-153.05,0.000101,2]
[406393888,1771863032569,-153.05,0.000101,2]
[406393889,1771863032578,-153.05,0.000101,2]
[406393890,1771863032587,-153.05,0.000101,2]
[406393891,1771863032596,-153.05,0.000101,2]
[406393892,1771863032605,-153.05,0.000102,2]
[406393893,1771863032615,-356.62565955,0.00013272,2]
[406393894,1771863032628,-143.37434045,0.00013272,2]
[406393895,1771863032638,-500.0,0.00013272,2]
[406393896,1771863032647,-500.0,0.00013272,2]
[406393897,1771863032655,-500.0,0.00013272,2]
[406393898,1771863032665,-500.0,0.00013272,2]
[406393899,1771863032674,-500.0,0.00013272,2]
[406393900,1771863032683,-500.0,0.00013272,2]
[406393901,1771863032691,-5.65536868,0.00013272,2]
[406393929,1771863039385,-153.05,0.000102,2]
[406393930,1771863039395,-153.05,0.000102,2]
[406393931,1771863039405,-153.05,0.000102,2]
[406393932,1771863039415,-153.05,0.000102,2]
[406393933,1771863039424,-153.05,0.000103,2]
[406393934,1771863039435,-153.05,0.000103,2]
[406393935,1771863039444,-153.05,0.000103,2]
[406393936,1771863039454,-153.05,0.000103,2]
[406393937,1771863039464,-153.05,0.000103,2]
[406393938,1771863039474,-494.34463132,0.00013272,2]
[406393939,1771863039483,-500.0,0.00013272,2]
[406393940,1771863039492,-500.0,0.00013272,2]
[406393941,1771863039502,-500.0,0.00013272,2]
[406393942,1771863039511,-500.0,0.00013272,2]
[406393943,1771863039520,-500.0,0.00013272,2]
[406393944,1771863039529,-500.0,0.00013272,2]
[406393945,1771863039539,-500.0,0.00013272,2]
[406393946,1771863039549,-500.0,0.00013272,2]
[406393947,1771863039560,-500.0,0.00013272,2]
[406393948,1771863039569,-500.0,0.00013272,2]
[406393949,1771863039579,-500.0,0.00013272,2]
[406393950,1771863039589,-500.0,0.00013272,2]
[406393951,1771863039599,-500.0,0.00013272,2]
[406393952,1771863039610,-500.0,0.00013272,2]
[406393953,1771863039619,-500.0,0.00013272,2]
[406393954,1771863039629,-500.0,0.00013272,2]
[406393955,1771863039638,-500.0,0.00013272,2]
[406393956,1771863039648,-500.0,0.00013272,2]
[406393957,1771863039657,-500.0,0.00013272,2]
[406393958,1771863039667,-500.0,0.00013272,2]
[406393959,1771863039676,-500.0,0.00013272,2]
[406393960,1771863039686,-500.0,0.00013272,2]
[406393961,1771863039696,-487.46853306,0.00013272,2]
[406393962,1771863039705,-500.0,0.00013272,2]
[406393963,1771863039715,-500.0,0.00013272,2]
[406393964,1771863039724,-500.0,0.00013272,2]
[406393965,1771863039734,-500.0,0.00013272,2]
[406393966,1771863039743,-500.0,0.00013272,2]
[406393967,1771863039753,-500.0,0.00013272,2]
[406393968,1771863039762,-500.0,0.00013272,2]
[406393969,1771863039772,-500.0,0.00013272,2]
[406393971,1771863039783,-500.0,0.00013272,2]
[406393972,1771863039792,-500.0,0.00013272,2]
[406393973,1771863039804,-500.0,0.00013272,2]
[406393974,1771863039814,-500.0,0.00013272,2]
[406393975,1771863039824,-500.0,0.00013272,2]
[406393976,1771863039834,-500.0,0.00013272,2]
[406393977,1771863039843,-500.0,0.00013273,2]
[406393978,1771863039853,-500.0,0.00013273,2]
[406393979,1771863039863,-642.24527926,0.00013273,2]
[406393980,1771863039872,-265.42261376,0.00013536,2]
[406393981,1771863039883,-613.0,0.00013536,2]
[406393982,1771863039893,-300.0,0.00013673,2]
[406393983,1771863039903,-300.0,0.00013697,2]
[406393984,1771863039913,-300.0,0.00013697,2]
[406393985,1771863039923,-300.0,0.00013697,2]
[406393986,1771863039932,-300.0,0.00013697,2]
[406393987,1771863039942,-1200.0,0.00013697,2]
[406393988,1771863039952,-500.0,0.00013698,2]
[406393989,1771863039962,-593.47596775,0.00013698,2]
[406393990,1771863039971,-505.32011301,0.00013698,2]
[406393991,1771863039980,-500.0,0.00013698,2]
[406393992,1771863039990,-500.0,0.00013698,2]
[406393993,1771863039999,-289.34715,0.00013698,2]
[406393995,1771863040008,-500.0,0.00013698,2]
[406393997,1771863040018,-307.55845053,0.00013698,2]
[406393999,1771863040027,-500.0,0.00013698,2]
[406394001,1771863040037,-500.0,0.00013698,2]
[406394003,1771863040047,-500.0,0.00013698,2]
[406394005,1771863040056,-325.72621694,0.00013698,2]
[406394007,1771863040066,-500.0,0.00013698,2]
[406394009,1771863040076,-297.03521164,0.00013698,2]
[406394011,1771863040085,-389.90403279,0.00013698,2]
[406394013,1771863040096,-500.0,0.00013698,2]
[406394015,1771863040105,-500.69126859,0.00013699,2]
[406394017,1771863040115,-500.0,0.00013699,2]
[406394019,1771863040124,-637.29390343,0.00013699,2]
[406394021,1771863040133,-500.0,0.00013699,2]
[406394023,1771863040143,-500.0,0.00013699,2]
[406394025,1771863040152,-306.07502425,0.00013699,2]
[406394027,1771863040161,-500.0,0.00013699,2]
[406394029,1771863040171,-502.10267406,0.00013699,2]
[406394031,1771863040179,-500.0,0.00013699,2]
[406394033,1771863040188,-506.48326983,0.00013699,2]
[406394035,1771863040198,-500.0,0.00013699,2]
[406394037,1771863040208,-502.69412043,0.00013699,2]
[406394039,1771863040218,-506.88562164,0.00013699,2]
[406394041,1771863040228,-500.0,0.00013699,2]
[406394042,1771863040237,-500.0,0.00013699,2]
[406394044,1771863040246,-500.67356677,0.00013699,2]
[406394046,1771863040256,-500.0,0.00013699,2]
[406394048,1771863040266,-503.71233878,0.00013699,2]
[406394050,1771863040275,-234.81283129,0.00013699,2]
[406394052,1771863040285,-500.0,0.00013699,2]
[406394054,1771863040294,-411.02223482,0.00013699,2]
[406394057,1771863040304,-501.09670929,0.00013699,2]
[406394059,1771863040314,-500.0,0.00013699,2]
[406394060,1771863040323,-617.31775578,0.00013699,2]
[406394062,1771863040332,-501.55795685,0.00013699,2]
[406394064,1771863040341,-500.0,0.00013699,2]
[406394066,1771863040351,-500.0,0.00013699,2]
[406394068,1771863040361,-266.08315995,0.00013699,2]
[406394071,1771863040371,-150.0,0.000137,2]
[406394073,1771863040383,-214.73475917,0.00013821,2]
[406394075,1771863040394,-1002.85553908,0.00013821,2]
[406394077,1771863040403,-1000.0,0.00013821,2]
[406394079,1771863040412,-1000.0,0.00013821,2]
[406394081,1771863040423,-1000.0,0.00013821,2]
[406394083,1771863040432,-1000.0,0.00013821,2]
[406394085,1771863040442,-1000.0,0.00013821,2]
[406394086,1771863040452,-500.0,0.00013821,2]
[406394088,1771863040462,-500.0,0.00013972,2]
[406394090,1771863040471,-1433.37032614,0.00013974,2]
[406394092,1771863040480,-3560.26147043,0.00013995,2]
[406394094,1771863040490,-150.0,0.000142,2]
[406394095,1771863040499,-600.0,0.00014221,2]
[406394097,1771863040508,-500.0,0.00014246,2]
[406394099,1771863040518,-500.0,0.00014246,2]
[406394101,1771863040527,-1000.0,0.00014247,2]
[406394103,1771863040537,-921.98099992,0.00014247,2]
[406394105,1771863040546,-1000.0,0.00014247,2]
[406394107,1771863040556,-1000.0,0.00014247,2]
[406394116,1771863040629,-150.10799448,0.00014247,2]
[406394118,1771863040639,-1000.0,0.00014247,2]
[406394119,1771863040648,-185.75598746,0.00014247,2]
[406394121,1771863040658,-727.8509917,0.00014247,2]
[406394123,1771863040667,-189.19655712,0.00014247,2]
[406394125,1771863040676,-1000.0,0.00014247,2]
[406394127,1771863040685,-900.52339024,0.00014247,2]
[406394129,1771863040694,-1000.0,0.00014247,2]
[406394131,1771863040706,-1000.0,0.00014247,2]
[406394134,1771863040716,-177.0,0.00014364,2]
[406394135,1771863040726,-1500.0,0.00014368,2]
[406394138,1771863040735,-1003.22081862,0.00014368,2]
[406394139,1771863040745,-1500.0,0.00014368,2]
[406394141,1771863040754,-1500.0,0.00014368,2]
[406394143,1771863040764,-1500.0,0.00014368,2]
[406394146,1771863040774,-2416.65,0.00014695,2]
[406394147,1771863040783,-208.75446729,0.00014761,2]
[406394150,1771863040794,-900.0,0.00014768,2]
[406394152,1771863040808,-500.0,0.00014793,2]
[406394153,1771863040817,-500.0,0.00014793,2]
[406394155,1771863040826,-500.0,0.00014793,2]
[406394157,1771863040835,-500.0,0.00014793,2]
[406394159,1771863040844,-493.45321369,0.00014795,2]
[406394161,1771863040854,-311.65087499,0.00014795,2]
[406394163,1771863040863,-257.48872998,0.00014795,2]
[406394165,1771863040872,-500.0,0.00014795,2]
[406394167,1771863040881,-1500.0,0.00014795,2]
[406394169,1771863040890,-1500.0,0.00014795,2]
[406394171,1771863040901,-1000.0,0.00014795,2]
[406394173,1771863040910,-232.62341682,0.00014822,2]
[406394176,1771863040933,-720.0,0.0001489,2]
[406394178,1771863040943,-500.0,0.00014916,2]
[406394180,1771863040954,-858.73654042,0.00014916,2]
[406394182,1771863040964,-1833.69771894,0.00014916,2]
[406394184,1771863040973,-2000.0,0.00014916,2]
[406394186,1771863040984,-2000.0,0.00014916,2]
[406394188,1771863040994,-420.0,0.0001501,2]
[406394190,1771863041004,-300.0,0.0001501,2]
[406394192,1771863041015,-420.0,0.0001501,2]
[406394194,1771863041024,-1680.0,0.00015067,2]
[406394196,1771863041035,-270.73,0.000151,2]
[406394198,1771863041045,-1200.0,0.00015316,2]
[406394200,1771863041054,-165.27191732,0.00015342,2]
[406394202,1771863041065,-2000.0,0.00015342,2]
[406394204,1771863041075,-210.96,0.000154,2]
[406394206,1771863041085,-2500.0,0.00015464,2]
[406394208,1771863041094,-2500.0,0.00015464,2]
[406394210,1771863041103,-221.5,0.000157,2]
[406394212,1771863041115,-171.1,0.000157,2]
[406394214,1771863041125,-171.1,0.00015788,2]
[406394216,1771863041134,-1500.0,0.00015864,2]
[406394217,1771863041143,-171.1,0.00015876,2]
[406394219,1771863041153,-1913.61022806,0.0001589,2]
[406394222,1771863041163,-171.1,0.00015964,2]
[406394223,1771863041173,-3000.0,0.00016012,2]
[406394225,1771863041182,-3000.0,0.00016012,2]
[406394227,1771863041192,-171.1,0.00016052,2]
[406394229,1771863041202,-204.0,0.00016364,2]
[406394231,1771863041213,-864.0,0.00016378,2]
[406394233,1771863041222,-1800.0,0.00016412,2]
[406394235,1771863041232,-150.07290783,0.00016438,2]
[406394237,1771863041241,-338.0,0.0001645,2]
[406394239,1771863041251,-587.0,0.0001645,2]
[406394241,1771863041261,-3000.0,0.0001656,2]
[406394243,1771863041270,-1360.47681245,0.0001656,2]
[406394245,1771863041279,-1056.0,0.00016573,2]
[406394247,1771863041288,-2100.0,0.0001696,2]
[406394249,1771863041298,-2400.0,0.00017508,2]
[406394251,1771863041307,-150.0,0.00017808,2]
[406394253,1771863041318,-1000.0,0.00018016,2]
[406394255,1771863041328,-823.0,0.00018027,2]
[406394257,1771863041337,-2344.65030303,0.00018056,2]
[406394259,1771863041347,-250.0,0.00018356,2]
[406394261,1771863041356,-231.0,0.00018364,2]
[406394263,1771863041365,-350.0,0.00018904,2]
[406394265,1771863041374,-3560.26147039,0.00019014,2]
[406394267,1771863041386,-450.0,0.00019452,2]
[406394269,1771863041396,-1129.0,0.00019756,2]
[406394271,1771863041407,-1000.0,0.00019818,2]
[406394273,1771863041416,-244.0,0.00019818,2]
[406394275,1771863041426,-207.38910657,0.0002,2]
[406394277,1771863041435,-258.0,0.00020364,2]
[406394279,1771863041444,-161.04,0.00021049,2]
[406394281,1771863041453,-1000.0,0.000218,10]
[406394283,1771863041466,-492.0,0.000218,10]
[406394285,1771863041475,-150.0,0.00021918,2]
[406394287,1771863041485,-285.0,0.00022364,2]
[406394289,1771863041494,-300.0,0.00022466,2]
[406394291,1771863041503,-450.0,0.00023014,2]
[406394293,1771863041513,-154.875,0.0002355,30]
[406394295,1771863041522,-1000.0,0.0002398,10]
[406394297,1771863041532,-791.0,0.0002398,10]
[406394299,1771863041542,-3560.26147039,0.00024032,2]
[406394302,1771863041552,-312.0,0.00024364,2]
[406394304,1771863041561,-1957.856,0.00024758,2]
[406394306,1771863041578,-151.0,0.00024758,2]
[406394309,1771863041593,-151.0,0.00024758,2]
[406394311,1771863041606,-151.0,0.00024758,2]
[406394314,1771863041620,-151.0,0.00024758,2]
[406394316,1771863041633,-151.0,0.00024758,2]
[406394319,1771863041644,-151.0,0.00024758,2]
[406394321,1771863041656,-151.0,0.00024758,2]
[406394323,1771863041669,-151.0,0.00024758,2]
[406394325,1771863041681,-151.0,0.00024758,2]
[406394328,1771863041693,-151.0,0.00024758,2]
[406394330,1771863041704,-216.00316339,0.00024758,2]
[406394332,1771863041717,-528.78195231,0.000248,2]
[406394334,1771863041729,-528.78195231,0.00024803,2]
[406394337,1771863041741,-2030.296672,0.00024813,2]
[406394339,1771863041757,-2105.41764886,0.00024868,2]
[406394342,1771863041771,-11005.24,0.0002489,10]
[406394344,1771863041784,-9171.03,0.0002489,10]
[406394346,1771863041796,-31574.633303,0.000249,2]
[406394349,1771863041808,-2183.31810187,0.00024923,2]
[406394351,1771863041825,-2264.10087164,0.00024978,2]
[406394354,1771863041839,-2347.87260389,0.00025033,2]
[406394356,1771863041851,-528.78195231,0.00025058,2]
[406394358,1771863041864,-31574.633303,0.00025068,2]
[406394361,1771863041878,-528.78195231,0.00025078,2]
[406394363,1771863041890,-2434.74389024,0.00025088,2]
[406394365,1771863041902,-2524.82941417,0.00025143,2]
[406394367,1771863041914,-2618.2481025,0.00025198,2]
[406394370,1771863041925,-2715.12328229,0.00025253,2]
[406394372,1771863041935,-2815.58284374,0.00025308,2]
[406394374,1771863041947,-2919.75940895,0.00025363,2]
[406394376,1771863041958,-3027.79050709,0.00025418,2]
[406394378,1771863041969,-1060.59779543,0.00025473,2]
[406394380,1771863041980,-157.073,0.00025543,10]
[406394382,1771863041992,-179.47311909,0.00025543,10]
[406394385,1771863042005,-339.0,0.00026364,2]
[406394387,1771863042017,-1000.0,0.00026378,30]
[406394389,1771863042031,-1000.0,0.00026378,30]
[406394392,1771863042043,-408.89729095,0.00027994,2]
[406394394,1771863042056,-431.18194107,0.00027994,2]
[406394396,1771863042070,-598.13321345,0.00027994,2]
[406394399,1771863042082,-294.10062254,0.00027994,2]
[406394401,1771863042092,-2390.14032096,0.00027994,2]
[406394403,1771863042102,-150.0,0.00028,5]
[406394405,1771863042113,-150.0,0.00028,5]
[406394407,1771863042123,-3010.34,0.00028139,30]
[406394409,1771863042133,-366.0,0.00028364,2]
[406394411,1771863042145,-250.0,0.00028548,5]
[406394414,1771863042159,-250.0,0.00028548,5]
[406394416,1771863042171,-487.0,0.00028548,2]
[406394418,1771863042183,-487.0,0.00028548,2]
[406394420,1771863042193,-487.0,0.00028548,2]
[406394422,1771863042204,-487.0,0.00028548,2]
[406394425,1771863042215,-704.76,0.00028548,2]
[406394427,1771863042226,-1000.0,0.00029015,30]
[406394429,1771863042239,-1000.0,0.00029015,30]
[406394431,1771863042249,-579.0,0.00029015,30]
[406394433,1771863042260,-1680.90381567,0.00029051,2]
[406394441,1771863042325,-1879.35765472,0.00029051,2]
[406394443,1771863042336,-350.0,0.00029096,5]
[406394444,1771863042346,-350.0,0.00029096,5]
[406394445,1771863042356,-475.0,0.0002926,120]
[406394446,1771863042370,-329.11383086,0.00029336,4]
[406394447,1771863042380,-178.85184647,0.00029336,4]
[406394448,1771863042393,-396.21862576,0.00029336,4]
[406394449,1771863042403,-152.11428995,0.00029336,4]
[406394450,1771863042413,-528.78195231,0.00029428,2]
[406394451,1771863042423,-31574.633303,0.00029437,2]
[406394452,1771863042434,-373.36904402,0.00029448,2]
[406394453,1771863042445,-380.44061436,0.00029448,2]
[406394454,1771863042455,-269.36905512,0.00029448,2]
[406394455,1771863042464,-484.86429921,0.00029448,2]
[406394456,1771863042472,-647.66506134,0.00029448,2]
[406394457,1771863042481,-1165.79711042,0.00029448,2]
[406394458,1771863042490,-2072.5281963,0.00029448,2]
[406394459,1771863042499,-3238.32530672,0.00029577,2]
[406394460,1771863042508,-500.0,0.00029612,7]
[406394461,1771863042517,-450.0,0.00029644,5]
[406394462,1771863042526,-450.0,0.00029644,5]
[406394463,1771863042535,-168.0,0.00029755,2]
[406394465,1771863042543,-168.0,0.00029884,2]
[406394467,1771863042553,-168.0,0.00029909,7]
[406394479,1771863042563,-168.0,0.00029963,2]
[406394482,1771863042672,-910.9189015,0.00029989,7]
[406394484,1771863042682,-550.0,0.00030192,5]
[406394486,1771863042691,-550.0,0.00030192,5]
[406394488,1771863042701,-168.0,0.00030204,2]
[406394489,1771863042710,-168.0,0.00030252,2]
[406394491,1771863042719,-168.0,0.00030345,2]
[406394493,1771863042728,-154.875,0.00030356,30]
[406394495,1771863042737,-393.0,0.00030364,2]
[406394498,1771863042747,-168.0,0.00030582,2]
[406394499,1771863042756,-650.0,0.0003074,5]
[406394501,1771863042765,-205.80012504,0.0003074,5]
[406394504,1771863042774,-168.0,0.00030751,2]
[406394506,1771863042784,-443.977322,0.00030754,2]
[406394507,1771863042793,-4663.18844168,0.00030763,2]
[406394510,1771863042803,-168.0,0.00030833,2]
[406394512,1771863042812,-168.0,0.00030879,2]
[406394514,1771863042821,-528.78195231,0.00031046,2]
[406394516,1771863042830,-31574.633303,0.00031056,2]
[406394518,1771863042838,-528.78195231,0.00031056,2]
[406394519,1771863042847,-34674.2517911,0.00031066,2]
[406394521,1771863042857,-3318.2788679,0.00031066,2]
[406394523,1771863042866,-168.0,0.00031077,2]
[406394525,1771863042876,-209.40437684,0.00031287,5]
[406394527,1771863042886,-217.15233878,0.00031287,5]
[406394529,1771863042896,-225.18697532,0.00031287,5]
[406394531,1771863042905,-233.51889341,0.00031287,5]
[406394534,1771863042915,-242.15909246,0.00031287,5]
[406394535,1771863042924,-251.11897888,0.00031287,5]
[406394538,1771863042934,-260.4103811,0.00031287,5]
[406394539,1771863042943,-270.0455652,0.00031287,5]
[406394542,1771863042952,-280.03725112,0.00031287,5]
[406394543,1771863042961,-290.39862941,0.00031287,5]
[406394545,1771863042971,-301.1433787,0.00031287,5]
[406394547,1771863042980,-750.0,0.00031288,5]
[406394550,1771863042989,-3701.47366617,0.00031424,2]
[406394552,1771863043001,-170609.03262521,0.00031434,2]
[406394601,1771863043461,-12.41727152,0.00031434,2]
[406394603,1771863043473,-7109.02901668,0.00031434,2]
[406394606,1771863043485,-6686.21797405,0.00031434,2]
[406394608,1771863043497,-3910.58996845,0.00031434,2]
[406394616,1771863043567,-153.05,0.000104,2]
[406394618,1771863043576,-153.05,0.000104,2]
[406394620,1771863043585,-153.05,0.000104,2]
[406394622,1771863043594,-500.0,0.00014246,2]
[406394624,1771863043604,-500.0,0.0001452,2]
[406394626,1771863043613,-500.0,0.00014794,2]
[406394628,1771863043622,-500.0,0.00015068,2]
[406394630,1771863043631,-1051.05922722,0.00031434,2]
[406395030,1771863047428,-47.43952027,0.000104,2]
[406395032,1771863047440,-105.61047973,0.000104,2]
[406395034,1771863047450,-153.05,0.000104,2]
[406395036,1771863047458,-204.78305271,0.0002489,10]
[406395053,1771863048074,-19.32080109,0.0002489,10]
[406395391,1771863936225,-181.1426825,0.00012339,2]
[406395406,1771863944303,224.2769888,8.655e-05,2]
[406395416,1771864048103,-118.8573175,0.00012339,2]
[406395417,1771864048126,-150.0,0.00012399,2]
[406395418,1771864048147,-110.00522125,0.00012458,2]
[406395522,1771864151123,-104.25482715,0.00012458,2]
[406395523,1771864151145,-1081.99711459,0.00012592,2]
[406395524,1771864161070,-5175.3968911,0.00012592,2]
[406395525,1771864162158,-207.53207481,0.00012592,2]
[406395526,1771864162179,-1200.0,0.0001317,2]
[406395527,1771864162201,-500.0,0.0001327,2]
[406395528,1771864162222,-500.0,0.0001327,2]
[406395529,1771864162243,-157.138,0.00013271,2]
[406395530,1771864162264,-300.0,0.00013597,2]
[406395531,1771864162287,-1892.17637075,0.00013598,2]
[406395532,1771864162311,-500.0,0.00013697,2]
[406395533,1771864162338,-500.0,0.00013697,2]
[406395534,1771864162362,-500.0,0.00013697,2]
[406395535,1771864162385,-500.0,0.00013697,2]
[406395536,1771864162407,-500.0,0.00013697,2]
[406395537,1771864162429,-500.0,0.00013697,2]
[406395538,1771864162451,-500.0,0.00013697,2]
[406395539,1771864162473,-500.0,0.00013697,2]
[406395540,1771864162496,-500.0,0.00013697,2]
[406395541,1771864162518,-500.0,0.00013697,2]
[406395542,1771864162542,-500.0,0.00013697,2]
[406395543,1771864162565,-500.0,0.00013697,2]
[406395544,1771864162591,-500.0,0.00013697,2]
[406395545,1771864162616,-500.0,0.00013697,2]
[406395546,1771864162640,-500.0,0.00013697,2]
[406395547,1771864162665,-500.0,0.00013697,2]
[406395548,1771864162688,-500.0,0.00013697,2]